bitfinex/quotes_BTCUSD_20241117
["timestamp","ask_amount","ask_price","bid_price","bid_amount"]
[1731821021287,0.0828,90699.0,90695.0,0.11273893]
[1731821021507,0.110258,90697.0,90695.0,0.00247993]
[1731821021723,0.0828,90699.0,90695.0,0.00247993]
[1731821021935,0.193054,90699.0,90691.0,0.110264]
[1731821022176,0.193054,90699.0,90696.0,0.00247992]
[1731821022391,0.193054,90699.0,90692.0,0.110262]
[1731821022618,0.193054,90699.0,90697.0,0.00247982]
[1731821022853,0.193054,90699.0,90692.0,0.110262]
[1731821023073,0.0828,90699.0,90698.0,0.00247972]
[1731821023292,0.0828,90699.0,90689.0,0.220533]
[1731821023542,0.0828,90699.0,90698.0,0.00247972]
[1731821024219,0.0828,90699.0,90693.0,0.110261]
[1731821024473,0.0828,90699.0,90698.0,0.00247972]
[1731821024687,0.0828,90699.0,90693.0,0.110261]
[1731821024916,0.0828,90699.0,90698.0,0.00247972]
[1731821025138,0.0828,90699.0,90693.0,0.110261]
[1731821025358,0.0828,90699.0,90698.0,0.00247972]
[1731821025579,0.0828,90699.0,90693.0,0.110261]
[1731821025820,0.0828,90699.0,90689.0,0.220533]
[1731821025821,0.0828,90699.0,90698.0,0.00247972]
[1731821026113,0.0828,90699.0,90694.0,0.11026]
[1731821026344,0.0828,90699.0,90698.0,0.00247972]
[1731821026575,0.0828,90699.0,90698.0,0.00344526]
[1731821026576,0.0836561,90699.0,90698.0,0.00344526]
[1731821026806,0.0836561,90699.0,90698.0,0.00592498]
[1731821027502,0.0836561,90699.0,90698.0,0.00247972]
[1731821027723,0.0836561,90699.0,90694.0,0.11026]
[1731821027947,0.0836561,90699.0,90698.0,0.11273572]
[1731821028168,0.0836561,90699.0,90698.0,0.110256]
[1731821028169,0.0008561,90699.0,90698.0,0.110256]
[1731821028422,0.0008561,90699.0,90698.0,0.00592492]
[1731821029107,0.0008561,90699.0,90698.0,0.00592479]
[1731821030485,0.0008561,90699.0,90698.0,0.00247972]
[1731821030716,0.0008561,90699.0,90698.0,0.11273572]
[1731821031009,0.0008561,90699.0,90698.0,0.110256]
[1731821031261,0.0008561,90699.0,90698.0,0.11272042]
[1731821031484,0.0008561,90699.0,90698.0,0.11616533]
[1731821031946,0.0816,90708.0,90706.0,0.110246]
[1731821031947,0.15810439,90707.0,90706.0,0.110246]
[1731821032178,0.15810439,90707.0,90706.0,0.11615553]
[1731821032408,0.0816,90708.0,90706.0,0.11615553]
[1731821032409,0.0816,90708.0,90707.0,0.110245]
[1731821032876,0.0816,90708.0,90707.0,0.00246305]
[1731821032877,0.191843,90708.0,90707.0,0.00246305]
[1731821032879,0.191843,90708.0,90707.0,0.00590775]
[1731821033100,0.19459923,90708.0,90707.0,0.00590775]
[1731821033314,0.19459923,90708.0,90707.0,0.0034447]
[1731821033786,0.19459923,90708.0,90699.0,0.110254]
[1731821034039,0.19459923,90708.0,90700.0,0.11615551]
[1731821034265,0.08435623,90708.0,90700.0,0.0059025]
[1731821034482,0.110251,90702.0,90701.0,0.00344496]
[1731821035168,0.110249,90704.0,90701.0,0.00611029]
[1731821035406,0.00275626,90705.0,90692.0,0.14532905]
[1731821035633,0.00275626,90705.0,90693.0,0.00246139]
[1731821035634,0.1293,90698.0,90693.0,0.00246139]
[1731821035891,0.110259,90696.0,90693.0,0.00246139]
[1731821036188,0.1293,90698.0,90686.0,0.22054]
[1731821036435,0.1293,90698.0,90691.0,0.110263]
[1731821036875,0.1293,90698.0,90692.0,0.0024608]
[1731821036876,0.239556,90698.0,90692.0,0.0024608]
[1731821037103,0.1293,90698.0,90692.0,0.0024608]
[1731821037598,0.22327043,90697.0,90686.0,0.11027]
[1731821037851,0.11026,90695.0,90687.0,0.00246119]
[1731821038065,0.110262,90693.0,90687.0,0.00246119]
[1731821038527,0.110264,90692.0,90683.0,0.110273]
[1731821038760,0.0816,90691.0,90688.0,0.0024607]
[1731821038972,0.0816,90691.0,90687.0,0.0017118]
[1731821039688,0.110266,90689.0,90688.0,0.00245474]
[1731821039920,0.180966,90689.0,90688.0,0.00245474]
[1731821040142,0.180966,90689.0,90687.0,0.0017118]
[1731821040143,0.214868,90688.0,90687.0,0.0017118]
[1731821040400,0.21762502,90688.0,90687.0,0.0017118]
[1731821040800,0.19462502,90688.0,90687.0,0.0017118]
[1731821041243,0.20288152,90688.0,90687.0,0.0017118]
[1731821042129,0.19462502,90688.0,90687.0,0.0017118]
[1731821042346,0.20287929,90688.0,90687.0,0.0017118]
[1731821045240,0.0816,90688.0,90687.0,0.0017118]
[1731821045466,0.191868,90688.0,90687.0,0.0017118]
[1731821046850,0.183868,90688.0,90687.0,0.0017118]
[1731821047085,0.0736,90688.0,90687.0,0.0017118]
[1731821047299,0.31893116,90696.0,90687.0,0.0017118]
[1731821047300,0.16524829,90695.0,90687.0,0.0017118]
[1731821047518,0.110267,90689.0,90687.0,0.0017118]
[1731821047730,0.16524829,90695.0,90687.0,0.0017118]
[1731821047952,0.110265,90691.0,90688.0,0.00248728]
[1731821048170,0.110265,90691.0,90687.0,0.0017118]
[1731821048171,0.00275664,90692.0,90687.0,0.0017118]
[1731821048376,0.110265,90691.0,90688.0,0.00248758]
[1731821048588,0.110266,90689.0,90687.0,0.0017118]
[1731821048798,0.110265,90691.0,90688.0,0.00248728]
[1731821049026,0.110265,90691.0,90687.0,0.0017118]
[1731821049497,0.00275664,90694.0,90687.0,0.0017118]
[1731821049709,0.110268,90688.0,90687.0,0.0017118]
[1731821049923,0.237268,90688.0,90687.0,0.0017118]
[1731821051239,0.24002491,90688.0,90687.0,0.0017118]
[1731821052368,0.237268,90688.0,90687.0,0.0017118]
[1731821052789,0.24002491,90688.0,90687.0,0.0017118]
[1731821053655,0.41974963,90688.0,90687.0,0.0017118]
[1731821053877,0.41699272,90688.0,90687.0,0.0017118]
[1731821054095,0.52605527,90688.0,90687.0,0.0017118]
[1731821054310,0.53429742,90688.0,90687.0,0.0017118]
[1731821055728,0.63771258,90688.0,90687.0,0.0017118]
[1731821055945,0.58393029,90688.0,90687.0,0.0017118]
[1731821056158,0.57568814,90688.0,90687.0,0.0017118]
[1731821056375,0.58392969,90688.0,90687.0,0.0017118]
[1731821056597,0.59217117,90688.0,90687.0,0.0017118]
[1731821056833,0.58392962,90688.0,90687.0,0.0017118]
[1731821057063,0.73155236,90688.0,90687.0,0.0017118]
[1731821057317,0.58392962,90688.0,90687.0,0.0017118]
[1731821057754,0.57568814,90688.0,90687.0,0.0017118]
[1731821057970,0.58392746,90688.0,90687.0,0.0017118]
[1731821058196,0.94905871,90688.0,90687.0,0.0017118]
[1731821058413,0.94898891,90688.0,90687.0,0.0017118]
[1731821058656,1.14681254,90688.0,90687.0,0.0017118]
[1731821059268,1.14678461,90688.0,90687.0,0.0017118]
[1731821059467,0.94899267,90688.0,90687.0,0.0017118]
[1731821060003,1.16978461,90688.0,90687.0,0.0017118]
[1731821060629,0.97199267,90688.0,90687.0,0.0017118]
[1731821060836,0.96375335,90688.0,90687.0,0.0017118]
[1731821061062,1.16978247,90688.0,90687.0,0.0017118]
[1731821061279,1.26971258,90688.0,90687.0,0.0017118]
[1731821061503,1.27471258,90688.0,90687.0,0.0017118]
[1731821061712,1.07699053,90688.0,90687.0,0.0017118]
[1731821061944,0.70392532,90688.0,90687.0,0.0017118]
[1731821062369,0.85218855,90688.0,90687.0,0.0017118]
[1731821062820,0.76027826,90688.0,90687.0,0.0017118]
[1731821063027,0.90852011,90688.0,90687.0,0.0017118]
[1731821063469,0.76027826,90688.0,90687.0,0.0017118]
[1731821063689,0.90852011,90688.0,90687.0,0.0017118]
[1731821063887,0.76027826,90688.0,90687.0,0.0017118]
[1731821064304,0.76113426,90688.0,90687.0,0.0017118]
[1731821065181,0.76113426,90688.0,90656.0,0.16524829]
[1731821065182,0.48335866,90677.0,90656.0,0.16524829]
[1731821065418,0.62365839,90677.0,90656.0,0.16524829]
[1731821065641,0.98835895,90677.0,90656.0,0.16524829]
[1731821065852,1.18594395,90677.0,90656.0,0.16524829]
[1731821066310,0.98835895,90677.0,90656.0,0.16524829]
[1731821066526,0.98835895,90677.0,90646.0,0.16610469]
[1731821066527,0.005,90666.0,90646.0,0.16610469]
[1731821066750,0.30875683,90647.0,90646.0,0.16610469]
[1731821067195,0.30875683,90647.0,90646.0,0.0008564]
[1731821068710,0.30875683,90647.0,90633.0,0.110334]
[1731821068711,0.110323,90643.0,90633.0,0.110334]
[1731821069174,0.110323,90643.0,90634.0,0.00240762]
[1731821069386,0.00275815,90644.0,90634.0,0.00240762]
[1731821069597,0.00275815,90644.0,90627.0,0.0852]
[1731821069598,0.110327,90640.0,90630.0,0.110337]
[1731821069828,0.110327,90640.0,90627.0,0.0832]
[1731821069829,0.110327,90640.0,90635.0,0.00231567]
[1731821070049,0.110327,90640.0,90631.0,0.110337]
[1731821070300,0.110327,90639.0,90636.0,0.00231518]
[1731821070522,0.0804,90647.0,90627.0,0.19226255]
[1731821070756,0.110328,90639.0,90628.0,0.1]
[1731821070975,0.16524829,90643.0,90628.0,0.10231666]
[1731821071202,0.110323,90643.0,90633.0,0.110335]
[1731821071425,0.22064,90645.0,90633.0,0.110335]
[1731821071426,0.27557229,90642.0,90633.0,0.110335]
[1731821071681,0.16524829,90642.0,90634.0,0.00231567]
[1731821071894,0.16524829,90642.0,90627.0,0.19226255]
[1731821071895,0.110328,90639.0,90629.0,0.110339]
[1731821072105,0.110328,90639.0,90627.0,0.12392532]
[1731821072106,0.110328,90639.0,90635.0,0.00222641]
[1731821072329,0.16524829,90642.0,90631.0,0.110337]
[1731821072330,0.110325,90641.0,90631.0,0.110337]
[1731821072541,0.110325,90641.0,90627.0,0.12392532]
[1731821072542,0.110325,90641.0,90632.0,0.110336]
[1731821072759,0.110325,90641.0,90632.0,0.11256261]
[1731821072994,0.16524829,90642.0,90633.0,0.110334]
[1731821073210,0.220617,90655.0,90640.0,0.110326]
[1731821073421,0.220617,90655.0,90641.0,0.00241237]
[1731821073422,0.22338397,90651.0,90641.0,0.00241237]
[1731821073629,0.110317,90648.0,90639.0,0.110327]
[1731821073840,0.110317,90648.0,90640.0,0.00241205]
[1731821074051,0.00275797,90649.0,90640.0,0.00241205]
[1731821074052,0.110318,90647.0,90640.0,0.00241205]
[1731821075596,0.220636,90647.0,90640.0,0.00241205]
[1731821075811,0.220636,90647.0,90633.0,0.10906255]
[1731821075812,0.110325,90642.0,90633.0,0.21939655]
[1731821076021,0.110325,90642.0,90641.0,0.00224391]
[1731821076231,0.110325,90642.0,90635.0,0.110332]
[1731821076448,0.110325,90642.0,90641.0,0.00224342]
[1731821076729,0.220653,90640.0,90627.0,0.0017132]
[1731821076963,0.0803,90641.0,90629.0,0.110339]
[1731821076964,0.0471,90636.0,90629.0,0.110339]
[1731821077175,0.110336,90633.0,90628.0,0.0022445]
[1731821077395,0.110338,90630.0,90628.0,0.0022445]
[1731821077614,0.110338,90630.0,90627.0,0.0017132]
[1731821077839,0.110338,90630.0,90629.0,0.00224421]
[1731821078077,0.110338,90630.0,90627.0,0.0017132]
[1731821078078,0.110341,90628.0,90627.0,0.0017132]
[1731821080046,0.1130999,90628.0,90627.0,0.0017132]
[1731821081985,0.110341,90628.0,90627.0,0.0017132]
[1731821082668,0.348079,90630.0,90612.0,0.04764832]
[1731821082871,0.110343,90627.0,90617.0,0.110353]
[1731821083085,0.1274,90630.0,90620.0,0.220701]
[1731821083288,0.110341,90628.0,90619.0,0.110352]
[1731821083713,0.110341,90628.0,90614.0,0.220716]
[1731821083714,0.110341,90628.0,90620.0,0.00224606]
[1731821084145,0.110341,90628.0,90613.0,0.002]
[1731821084146,0.0801,90637.0,90616.0,0.03608603]
[1731821084426,0.110333,90635.0,90627.0,0.110341]
[1731821084649,0.0801,90637.0,90617.0,0.32977155]
[1731821084650,0.0801,90637.0,90617.0,0.11131124]
[1731821084861,0.21494829,90638.0,90630.0,0.002]
[1731821084862,0.05792013,90638.0,90630.0,0.002]
[1731821085076,0.05792013,90638.0,90624.0,0.220689]
[1731821085077,0.000985,90637.0,90631.0,0.10906255]
[1731821085280,0.16524829,90642.0,90631.0,0.11130857]
[1731821085487,0.16524829,90642.0,90641.0,0.110325]
[1731821085728,0.16524829,90653.0,90635.0,0.00108463]
[1731821085935,0.16524829,90653.0,90649.0,0.110315]
[1731821085936,0.0009929,90650.0,90649.0,0.110315]
[1731821086152,0.0009929,90650.0,90635.0,0.11014718]
[1731821086153,0.16524829,90653.0,90647.0,0.110316]
[1731821086360,0.2206,90662.0,90636.0,0.441324]
[1731821086361,0.16524829,90655.0,90649.0,0.00226233]
[1731821086568,0.16524829,90655.0,90644.0,0.002]
[1731821086776,0.16524829,90655.0,90645.0,0.22064]
[1731821086996,0.16524829,90655.0,90649.0,0.110315]
[1731821087207,0.16524829,90655.0,90647.0,0.220636]
[1731821087419,0.16524829,90655.0,90650.0,0.00226154]
[1731821087632,0.16524829,90655.0,90649.0,0.110314]
[1731821087839,0.16524829,90655.0,90647.0,0.220636]
[1731821087840,0.16524829,90661.0,90651.0,0.00226144]
[1731821088051,0.16524829,90661.0,90651.0,0.110313]
[1731821088265,0.110305,90658.0,90652.0,0.00226193]
[1731821089337,0.110305,90657.0,90652.0,0.00226193]
[1731821089755,0.110305,90657.0,90649.0,0.110315]
[1731821089963,0.110305,90657.0,90650.0,0.110314]
[1731821090225,0.110305,90657.0,90650.0,0.11257573]
[1731821090697,0.0008567,90658.0,90651.0,0.110312]
[1731821090937,0.0008567,90658.0,90652.0,0.110311]
[1731821091164,0.0008567,90658.0,90652.0,0.00226164]
[1731821091439,0.0008567,90658.0,90657.0,0.110305]
[1731821091950,0.0823,90673.0,90657.0,0.11014535]
[1731821091951,0.15909449,90672.0,90657.0,0.11014535]
[1731821092171,0.15909449,90672.0,90658.0,0.10906255]
[1731821092407,0.15909449,90672.0,90668.0,0.110291]
[1731821092632,0.15909449,90672.0,90659.0,0.11275193]
[1731821092867,0.15909449,90672.0,90669.0,0.00244786]
[1731821093097,0.0823,90673.0,90668.0,0.110292]
[1731821093364,0.0823,90673.0,90661.0,0.220602]
[1731821093582,0.0823,90673.0,90669.0,0.00243938]
[1731821093837,0.0823,90673.0,90667.0,0.110293]
[1731821094102,0.110289,90671.0,90668.0,0.00243825]
[1731821094577,0.192586,90673.0,90664.0,0.110297]
[1731821094831,0.22058,90670.0,90658.0,0.220609]
[1731821095069,0.22058,90670.0,90658.0,0.110303]
[1731821095070,0.110294,90667.0,90658.0,0.110303]
[1731821095295,0.110298,90663.0,90659.0,0.00243889]
[1731821095533,0.265968,90675.0,90659.0,0.00243889]
[1731821095534,0.110302,90660.0,90659.0,0.00243889]
[1731821095815,0.192602,90660.0,90650.0,0.1]
[1731821096302,0.0823,90660.0,90652.0,0.110311]
[1731821096746,0.0823,90660.0,90653.0,0.00243846]
[1731821097655,0.0823,90660.0,90654.0,0.110308]
[1731821097895,0.0823,90660.0,90654.0,0.11274636]
[1731821099164,0.0823,90660.0,90654.0,0.00243836]
[1731821099626,0.0823,90660.0,90651.0,0.330939]
[1731821099832,0.0823,90660.0,90655.0,0.00243825]
[1731821100041,0.0823,90660.0,90654.0,0.110309]
[1731821100459,0.0823,90660.0,90655.0,0.00243825]
[1731821100666,0.0823,90660.0,90650.0,0.1]
[1731821100899,0.08505752,90660.0,90656.0,0.00243814]
[1731821101104,0.110304,90659.0,90651.0,0.110312]
[1731821101319,0.0823,90660.0,90647.0,0.1]
[1731821101590,0.0454,90668.0,90655.0,0.220615]
[1731821101795,0.220553,90681.0,90657.0,0.002]
[1731821102000,0.220553,90681.0,90664.0,0.110297]
[1731821102001,0.0807,90674.0,90664.0,0.110297]
[1731821102215,0.16524829,90669.0,90664.0,0.110297]
[1731821102421,0.16524829,90669.0,90665.0,0.00244145]
[1731821102634,0.16524829,90669.0,90664.0,0.110297]
[1731821102843,0.16524829,90669.0,90666.0,0.00244134]
[1731821103059,0.0807,90674.0,90660.0,0.04487837]
[1731821103274,0.0807,90674.0,90669.0,0.11029]
[1731821103518,0.0807,90674.0,90667.0,0.110293]
[1731821103724,0.0807,90674.0,90670.0,0.00244145]
[1731821103929,0.0807,90674.0,90667.0,0.110293]
[1731821104136,0.0807,90674.0,90671.0,0.00244134]
[1731821104366,0.0807,90674.0,90667.0,0.110293]
[1731821104583,0.0807,90674.0,90672.0,0.00244124]
[1731821104803,0.0807,90674.0,90667.0,0.110293]
[1731821105004,0.0807,90674.0,90673.0,0.00244113]
[1731821105215,0.0807,90674.0,90667.0,0.110293]
[1731821105425,0.0807,90674.0,90673.0,0.00244113]
[1731821105658,0.0807,90674.0,90668.0,0.110291]
[1731821105862,0.0807,90674.0,90673.0,0.00244113]
[1731821106092,0.0807,90674.0,90668.0,0.110291]
[1731821106300,0.0807,90674.0,90673.0,0.00244113]
[1731821106514,0.0807,90674.0,90668.0,0.110291]
[1731821106739,0.0496,90676.0,90673.0,0.00244113]
[1731821106958,0.0727,90681.0,90672.0,0.110286]
[1731821107169,0.110279,90679.0,90672.0,0.110286]
[1731821107404,0.110279,90679.0,90673.0,0.00264741]
[1731821107619,0.0727,90681.0,90673.0,0.00264741]
[1731821107832,0.0727,90681.0,90670.0,0.220577]
[1731821107833,0.0496,90684.0,90671.0,0.00108198]
[1731821108036,0.0496,90684.0,90670.0,0.22165898]
[1731821108250,0.1112621,90683.0,90675.0,0.110283]
[1731821108460,0.0009881,90683.0,90671.0,0.00264788]
[1731821108673,0.0496,90684.0,90676.0,0.0026473]
[1731821108874,0.0496,90684.0,90678.0,0.110279]
[1731821109286,0.0496,90684.0,90679.0,0.00264706]
[1731821109491,0.0496,90684.0,90679.0,0.11292506]
[1731821109695,0.0496,90684.0,90680.0,0.110277]
[1731821109902,0.0496,90684.0,90679.0,0.00264706]
[1731821110125,0.0496,90684.0,90681.0,0.00262251]
[1731821110328,0.0496,90684.0,90680.0,0.00262263]
[1731821110538,0.0496,90684.0,90682.0,0.0026224]
[1731821110762,0.0496,90684.0,90682.0,0.110275]
[1731821110965,0.0496,90684.0,90683.0,0.00262228]
[1731821111613,0.0496,90684.0,90679.0,0.110278]
[1731821111820,0.0496,90684.0,90683.0,0.00262228]
[1731821112040,0.0496,90684.0,90678.0,0.11028]
[1731821112252,0.0496,90684.0,90683.0,0.00262228]
[1731821112474,0.0496,90684.0,90678.0,0.11028]
[1731821112683,0.0496,90684.0,90683.0,0.00262228]
[1731821112891,0.0496,90684.0,90678.0,0.11028]
[1731821113092,0.0496,90684.0,90683.0,0.00262228]
[1731821113330,0.110276,90682.0,90673.0,0.15474977]
[1731821113591,0.220548,90683.0,90673.0,0.10906255]
[1731821113835,0.0504562,90684.0,90673.0,0.10906255]
[1731821114069,0.0504562,90684.0,90674.0,0.00262321]
[1731821114313,0.110277,90681.0,90674.0,0.00262321]
[1731821114561,0.110274,90683.0,90675.0,0.110283]
[1731821114997,0.110274,90683.0,90676.0,0.00262298]
[1731821115244,0.158881,90677.0,90676.0,0.00262298]
[1731821115469,0.1314,90677.0,90664.0,0.1]
[1731821115696,0.110289,90671.0,90664.0,0.1]
[1731821116439,0.110286,90673.0,90665.0,0.110296]
[1731821116668,0.110286,90673.0,90663.0,0.10906255]
[1731821116669,0.110286,90673.0,90666.0,0.110294]
[1731821117193,0.110283,90676.0,90663.0,0.32965755]
[1731821117615,0.110283,90676.0,90665.0,0.220592]
[1731821117837,0.1314,90677.0,90665.0,0.220592]
[1731821118104,0.110283,90675.0,90665.0,0.220592]
[1731821118325,0.1314,90677.0,90663.0,0.11106255]
[1731821118562,0.1314,90677.0,90667.0,0.1]
[1731821118796,0.1314,90677.0,90674.0,0.110285]
[1731821118797,0.16524829,90675.0,90674.0,0.110285]
[1731821119271,0.0486,90677.0,90676.0,0.110282]
[1731821120991,0.0486,90677.0,90667.0,0.1]
[1731821121219,0.0486,90677.0,90662.0,0.1]
[1731821121220,0.296265,90676.0,90662.0,0.1]
[1731821121452,0.296265,90676.0,90663.0,0.10906255]
[1731821121681,0.185983,90676.0,90668.0,0.110292]
[1731821121903,0.0677,90676.0,90666.0,0.110294]
[1731821122364,0.0677,90676.0,90665.0,0.220592]
[1731821122365,0.110284,90675.0,90668.0,0.110292]
[1731821122586,0.177982,90676.0,90668.0,0.110292]
[1731821123381,0.177982,90676.0,90665.0,0.220592]
[1731821123382,0.0677,90676.0,90665.0,0.220592]
[1731821123639,0.0677,90676.0,90664.0,0.110296]
[1731821123640,0.110289,90671.0,90664.0,0.110296]
[1731821123853,0.110286,90673.0,90665.0,0.110295]
[1731821124088,0.110287,90672.0,90665.0,0.110295]
[1731821124825,0.16524829,90673.0,90666.0,0.110294]
[1731821125048,0.16524829,90673.0,90663.0,0.220597]
[1731821125271,0.27553529,90673.0,90665.0,0.110295]
[1731821125972,0.110287,90673.0,90666.0,0.110294]
[1731821126445,0.110287,90673.0,90664.0,0.220594]
[1731821126710,0.110287,90673.0,90668.0,0.0017122]
[1731821127603,0.110287,90672.0,90668.0,0.0017122]
[1731821127845,0.110291,90669.0,90668.0,0.0017122]
[1731821128092,0.330862,90672.0,90668.0,0.00431978]
[1731821128317,0.110291,90670.0,90668.0,0.0017122]
[1731821128566,0.160191,90669.0,90668.0,0.0017122]
[1731821130046,0.240391,90669.0,90668.0,0.0017122]
[1731821131192,0.24314868,90669.0,90668.0,0.0017122]
[1731821131452,0.34170095,90669.0,90668.0,0.0017122]
[1731821131670,0.33894327,90669.0,90668.0,0.0017122]
[1731821131930,0.240391,90669.0,90668.0,0.0017122]
[1731821132163,0.34209537,90669.0,90668.0,0.0017122]
[1731821132394,0.240391,90669.0,90668.0,0.0017122]
[1731821132641,0.24314867,90669.0,90668.0,0.0017122]
[1731821134382,0.240391,90669.0,90668.0,0.0017122]
[1731821134847,0.1301,90669.0,90668.0,0.0017122]
[1731821135319,0.1301,90669.0,90668.0,0.11462083]
[1731821135533,0.1301,90669.0,90668.0,0.0017122]
[1731821135810,0.1301,90669.0,90668.0,0.00432893]
[1731821136071,0.1301,90669.0,90668.0,0.1120042]
[1731821136292,0.0499,90669.0,90668.0,0.00432776]
[1731821136988,0.0419,90669.0,90668.0,0.00432776]
[1731821137215,0.0419,90669.0,90668.0,0.0017122]
[1731821137436,0.0419,90669.0,90668.0,0.00434041]
[1731821138588,0.0419,90669.0,90668.0,0.11463241]
[1731821138863,0.0802,90675.0,90670.0,0.220579]
[1731821139112,0.0802,90675.0,90672.0,0.110287]
[1731821139338,0.0802,90675.0,90673.0,0.110286]
[1731821139601,0.0802,90675.0,90673.0,0.1129136]
[1731821140041,0.0466,90674.0,90673.0,0.1129136]
[1731821140540,0.0466,90674.0,90673.0,0.0026276]
[1731821140994,0.0466,90674.0,90668.0,0.1120042]
[1731821141214,0.0466,90674.0,90673.0,0.00262301]
[1731821141447,0.0466,90674.0,90669.0,0.110291]
[1731821141683,0.0466,90674.0,90673.0,0.00262301]
[1731821142200,0.0466,90674.0,90668.0,0.0017122]
[1731821142422,0.156885,90674.0,90673.0,0.00262301]
[1731821142635,0.156885,90674.0,90668.0,0.0017122]
[1731821142856,0.0466,90674.0,90668.0,0.0017122]
[1731821143070,0.110286,90673.0,90669.0,0.00262347]
[1731821143540,0.0466,90674.0,90668.0,0.0017122]
[1731821143813,0.0466,90674.0,90668.0,0.1120032]
[1731821144034,0.0466,90674.0,90669.0,0.11029]
[1731821144283,0.0466,90674.0,90669.0,0.00262347]
[1731821144756,0.110287,90672.0,90669.0,0.00262347]
[1731821145215,0.0466,90674.0,90669.0,0.00262347]
[1731821145441,0.110286,90673.0,90669.0,0.00262347]
[1731821145662,0.110286,90673.0,90668.0,0.0017122]
[1731821146142,0.110288,90672.0,90668.0,0.0017122]
[1731821146612,0.156886,90674.0,90668.0,0.0017122]
[1731821147288,0.110286,90673.0,90668.0,0.0017122]
[1731821147517,0.110286,90673.0,90669.0,0.00262336]
[1731821147962,0.110286,90673.0,90668.0,0.0017122]
[1731821149380,0.00275714,90673.0,90668.0,0.0017122]
[1731821149600,0.110287,90672.0,90668.0,0.0017122]
[1731821150076,0.00275719,90672.0,90668.0,0.0017122]
[1731821150307,0.11029,90670.0,90668.0,0.0017122]
[1731821150523,0.11029,90670.0,90669.0,0.00262311]
[1731821150975,0.11029,90670.0,90668.0,0.0017122]
[1731821151460,0.110291,90669.0,90668.0,0.0017122]
[1731821151683,0.220572,90673.0,90668.0,0.0017122]
[1731821151920,0.102288,90671.0,90668.0,0.0017122]
[1731821152163,0.220575,90672.0,90668.0,0.0017122]
[1731821152389,0.110291,90669.0,90668.0,0.0017122]
[1731821154704,0.235291,90669.0,90668.0,0.0017122]
[1731821157662,0.25593228,90669.0,90668.0,0.0017122]
[1731821159435,0.25868974,90669.0,90668.0,0.0017122]
[1731821160332,0.54771278,90669.0,90668.0,0.0017122]
[1731821160562,0.64396751,90669.0,90668.0,0.0017122]
[1731821160777,0.68830035,90669.0,90668.0,0.0017122]
[1731821161001,0.73780504,90669.0,90668.0,0.0017122]
[1731821161223,0.9548966,90669.0,90668.0,0.0017122]
[1731821161514,0.9598966,90669.0,90668.0,0.0017122]
[1731821161729,1.0648966,90669.0,90668.0,0.0017122]
[1731821161946,1.09929631,90669.0,90668.0,0.0017122]
[1731821162387,1.0648966,90669.0,90668.0,0.0017122]
[1731821162609,1.09928732,90669.0,90668.0,0.0017122]
[1731821163265,1.0786425,90669.0,90668.0,0.0017122]
[1731821163481,1.0648866,90669.0,90668.0,0.0017122]
[1731821164148,0.66586356,90669.0,90668.0,0.0017122]
[1731821164384,0.81948742,90669.0,90668.0,0.0017122]
[1731821164603,0.25592582,90669.0,90668.0,0.0017122]
[1731821164860,0.23804856,90669.0,90668.0,0.0017122]
[1731821165537,0.235291,90669.0,90668.0,0.0017122]
[1731821166850,0.23804853,90669.0,90668.0,0.0017122]
[1731821167079,0.23004853,90669.0,90668.0,0.0017122]
[1731821167527,0.32902467,90669.0,90668.0,0.0017122]
[1731821167768,0.34688821,90669.0,90668.0,0.0017122]
[1731821168011,0.24791207,90669.0,90668.0,0.0017122]
[1731821168235,0.2506696,90669.0,90668.0,0.0017122]
[1731821170027,0.2506683,90669.0,90668.0,0.0017122]
[1731821170249,0.23004853,90669.0,90668.0,0.0017122]
[1731821170470,0.25066816,90669.0,90668.0,0.0017122]
[1731821171352,0.14837716,90669.0,90668.0,0.0017122]
[1731821171569,0.14561963,90669.0,90668.0,0.0017122]
[1731821171783,0.235291,90669.0,90668.0,0.0017122]
[1731821173131,0.0472,90669.0,90668.0,0.0017122]
[1731821173349,0.1111451,90671.0,90668.0,0.0017122]
[1731821174000,0.1111441,90671.0,90668.0,0.0017122]
[1731821174230,0.0008561,90671.0,90668.0,0.0017122]
[1731821174463,0.11029,90670.0,90668.0,0.0017122]
[1731821174681,0.0008561,90671.0,90668.0,0.0017122]
[1731821174926,0.0008561,90671.0,90670.0,0.11029]
[1731821175396,0.0008561,90671.0,90670.0,0.11259012]
[1731821177860,0.0008561,90671.0,90670.0,0.11257874]
[1731821178122,0.0008561,90671.0,90670.0,0.22164129]
[1731821179013,0.0008561,90671.0,90670.0,0.27064129]
[1731821179890,0.0008561,90671.0,90670.0,0.27264129]
[1731821181901,0.16152899,90685.0,90678.0,0.110279]
[1731821182546,0.16152899,90685.0,90679.0,0.00217891]
[1731821183003,0.11388079,90688.0,90679.0,0.00217891]
[1731821183248,0.000856,90688.0,90681.0,0.110276]
[1731821183510,0.000856,90688.0,90682.0,0.110275]
[1731821183726,0.000856,90688.0,90682.0,0.00217891]
[1731821184174,0.000856,90688.0,90684.0,0.110272]
[1731821184398,0.000856,90688.0,90687.0,0.110269]
[1731821184666,0.000856,90688.0,90686.0,0.11027]
[1731821184883,0.000856,90688.0,90687.0,0.00217135]
[1731821185321,0.000856,90688.0,90685.0,0.110271]
[1731821185552,0.000856,90688.0,90687.0,0.00217135]
[1731821185767,0.000856,90688.0,90680.0,0.10906255]
[1731821185768,0.000856,90688.0,90682.0,0.110274]
[1731821185986,0.000856,90688.0,90685.0,0.110271]
[1731821186209,0.000856,90688.0,90682.0,0.22055]
[1731821186404,0.000856,90688.0,90686.0,0.00217147]
[1731821186665,0.000856,90688.0,90682.0,0.22055]
[1731821186666,0.000856,90688.0,90684.0,0.110272]
[1731821186900,0.000856,90688.0,90687.0,0.00217135]
[1731821187143,0.000856,90688.0,90684.0,0.110272]
[1731821187370,0.000856,90688.0,90685.0,0.00217158]
[1731821187605,0.000856,90688.0,90670.0,0.1]
[1731821187606,0.111124,90688.0,90670.0,0.1]
[1731821187836,0.111124,90688.0,90672.0,0.1]
[1731821187837,0.220541,90686.0,90672.0,0.1]
[1731821188064,0.110274,90684.0,90673.0,0.10906255]
[1731821188285,0.110274,90684.0,90675.0,0.110283]
[1731821188692,0.110274,90684.0,90676.0,0.00215424]
[1731821190490,0.16524829,90685.0,90676.0,0.00215424]